bitfinex/quotes_BTCUSD_20241206
["timestamp","ask_amount","ask_price","bid_price","bid_amount"]
[1733468167174,0.60888154,98111.0,98110.0,0.3820002]
[1733468167384,0.3,98111.0,98110.0,0.3820002]
[1733468180592,0.203845,98114.0,98110.0,0.3820002]
[1733468180821,0.20512012,98113.0,98110.0,0.3820002]
[1733468185799,0.40896612,98113.0,98110.0,0.3820002]
[1733468187266,0.20385,98111.0,98110.0,0.3000002]
[1733468187444,0.30888154,98111.0,98110.0,0.3000002]
[1733468190550,0.32911498,98111.0,98110.0,0.3000002]
[1733468191382,0.6205654,98111.0,98110.0,0.3000002]
[1733468191587,0.52911498,98111.0,98110.0,0.3000002]
[1733468191794,0.66629061,98111.0,98110.0,0.3000002]
[1733468191931,0.52911498,98111.0,98110.0,0.3000002]
[1733468192160,0.66634562,98111.0,98110.0,0.3000002]
[1733468192491,0.52911498,98111.0,98110.0,0.3000002]
[1733468192709,0.66633964,98111.0,98110.0,0.3000002]
[1733468194447,0.52911498,98111.0,98110.0,0.3000002]
[1733468199285,0.62055971,98111.0,98110.0,0.3000002]
[1733468199496,0.52911498,98111.0,98110.0,0.3000002]
[1733468203478,0.5597142,98111.0,98110.0,0.3000002]
[1733468203899,0.52911498,98111.0,98110.0,0.3000002]
[1733468205398,0.62053069,98111.0,98110.0,0.3000002]
[1733468205810,0.52911498,98111.0,98110.0,0.3000002]
[1733468213557,0.57911498,98111.0,98110.0,0.16310629]
[1733468213989,0.87120788,98111.0,98110.0,0.16310629]
[1733468214377,0.7161759,98111.0,98110.0,0.14272129]
[1733468214578,0.82107082,98111.0,98110.0,0.06118129]
[1733468214931,0.82107231,98111.0,98110.0,0.06118129]
[1733468215356,0.82106059,98111.0,98110.0,0.02041129]
[1733468215568,0.82106059,98111.0,98110.0,2.629e-05]
[1733468215790,1.36006059,98111.0,98110.0,2.629e-05]
[1733468216006,1.7460998,98111.0,98110.0,2.629e-05]
[1733468216242,1.56334257,98111.0,98110.0,2.629e-05]
[1733468216407,1.56334257,98111.0,98100.0,0.0017296]
[1733468216408,0.753871,98101.0,98100.0,8.9e-07]
[1733468216627,2.63727634,98101.0,98100.0,8.9e-07]
[1733468216828,2.7743158,98101.0,98100.0,8.9e-07]
[1733468217207,2.63727634,98101.0,98100.0,8.9e-07]
[1733468217410,2.7286253,98101.0,98100.0,8.9e-07]
[1733468217615,3.3079158,98101.0,98100.0,8.9e-07]
[1733468217822,3.17087634,98101.0,98100.0,8.9e-07]
[1733468218224,0.4,98091.0,98090.0,6.9e-07]
[1733468218421,0.85892354,98091.0,98090.0,6.9e-07]
[1733468219467,0.85898143,98091.0,98090.0,6.9e-07]
[1733468223359,0.87903576,98091.0,98090.0,6.9e-07]
[1733468224804,1.41263576,98091.0,98090.0,6.9e-07]
[1733468227793,0.72903576,98091.0,98090.0,6.9e-07]
[1733468228005,0.87852403,98091.0,98090.0,6.9e-07]
[1733468228205,0.82852403,98091.0,98090.0,6.9e-07]
[1733468228638,0.87852403,98091.0,98090.0,6.9e-07]
[1733468229284,0.96984642,98091.0,98090.0,6.9e-07]
[1733468229490,0.87852403,98091.0,98090.0,6.9e-07]
[1733468230554,0.94242526,98091.0,98090.0,6.9e-07]
[1733468230761,0.87852403,98091.0,98090.0,6.9e-07]
[1733468230967,1.41212403,98091.0,98090.0,6.9e-07]
[1733468231651,1.41490999,98091.0,98090.0,6.9e-07]
[1733468232076,1.06542172,98091.0,98090.0,6.9e-07]
[1733468232313,1.06542172,98091.0,98090.0,0.12570069]
[1733468232523,1.31542172,98091.0,98090.0,0.12570069]
[1733468232741,0.99536739,98091.0,98090.0,0.12570069]
[1733468233829,0.46176739,98091.0,98090.0,0.12570069]
[1733468235173,0.56666231,98091.0,98090.0,0.12570069]
[1733468235403,0.61615058,98091.0,98090.0,0.12570069]
[1733468235620,0.61615058,98091.0,98090.0,0.07680069]
[1733468235821,0.61615058,98091.0,98090.0,6.9e-07]
[1733468235822,0.66615058,98091.0,98090.0,6.9e-07]
[1733468236027,0.75756033,98091.0,98090.0,6.9e-07]
[1733468236478,0.66615058,98091.0,98090.0,6.9e-07]
[1733468236711,0.95946001,98091.0,98090.0,6.9e-07]
[1733468236916,0.80333151,98091.0,98090.0,6.9e-07]
[1733468237119,0.66615058,98091.0,98090.0,6.9e-07]
[1733468238173,0.80333151,98091.0,98090.0,6.9e-07]
[1733468238380,0.80332948,98091.0,98090.0,6.9e-07]
[1733468238594,0.95962811,98091.0,98090.0,6.9e-07]
[1733468238802,0.66615058,98091.0,98090.0,6.9e-07]
[1733468239051,0.80332501,98091.0,98090.0,6.9e-07]
[1733468239288,0.56125566,98091.0,98090.0,6.9e-07]
[1733468239522,0.56125566,98091.0,98090.0,0.07770069]
[1733468239735,0.76176739,98091.0,98090.0,0.07770069]
[1733468239965,0.81125566,98091.0,98090.0,0.07770069]
[1733468242753,0.76176739,98091.0,98090.0,0.07770069]
[1733468243031,0.90585449,98091.0,98090.0,0.07770069]
[1733468245311,0.81125566,98091.0,98090.0,0.07770069]
[1733468249486,0.90275679,98091.0,98090.0,0.07770069]
[1733468250072,0.81125566,98091.0,98090.0,0.07770069]
[1733468252547,0.90277914,98091.0,98090.0,0.07770069]
[1733468252765,0.81125566,98091.0,98090.0,0.07770069]
[1733468253387,0.90277914,98091.0,98090.0,0.07770069]
[1733468254358,0.81125566,98091.0,98090.0,0.07770069]
[1733468254737,0.90279843,98091.0,98090.0,0.07770069]
[1733468255159,0.81125566,98091.0,98090.0,0.07770069]
[1733468255391,0.94854088,98091.0,98090.0,0.07770069]
[1733468255814,0.94859289,98091.0,98090.0,0.07770069]
[1733468256011,0.81125566,98091.0,98090.0,0.07770069]
[1733468256185,0.94859289,98091.0,98090.0,0.07770069]
[1733468257408,0.81125566,98091.0,98090.0,0.07770069]
[1733468257717,0.81125566,98091.0,98090.0,0.04905301]
[1733468258141,0.94863879,98091.0,98090.0,0.04905301]
[1733468258345,0.59915052,98091.0,98090.0,0.04905301]
[1733468258583,0.46176739,98091.0,98090.0,0.04905301]
[1733468258921,0.7553214,98091.0,98090.0,0.04905301]
[1733468259141,0.46176739,98091.0,98090.0,0.05078461]
[1733468259339,0.75532094,98091.0,98090.0,0.05078461]
[1733468260698,0.86021586,98091.0,98090.0,0.05078461]
[1733468260914,0.86021586,98091.0,98090.0,0.0017316]
[1733468261114,0.89176426,98091.0,98090.0,0.0017316]
[1733468261341,0.86021586,98091.0,98090.0,0.0017316]
[1733468262252,0.86035602,98091.0,98090.0,0.0017316]
[1733468266133,0.89191186,98091.0,98090.0,6e-07]
[1733468266767,0.78701694,98091.0,98090.0,6e-07]
[1733468267840,0.83701694,98091.0,98090.0,6e-07]
[1733468268714,1.11194526,98091.0,98090.0,6e-07]
[1733468269154,0.83701694,98091.0,98090.0,6e-07]
[1733468270035,1.37061694,98091.0,98090.0,6e-07]
[1733468270283,1.44747926,98091.0,98090.0,6e-07]
[1733468270514,1.64549811,98091.0,98090.0,6e-07]
[1733468270711,1.37061694,98091.0,98090.0,0.0754006]
[1733468271675,1.37084806,98091.0,98090.0,0.0754006]
[1733468273101,0.83724806,98091.0,98090.0,0.0754006]
[1733468274390,0.94214298,98091.0,98090.0,0.0754006]
[1733468276387,0.94214298,98091.0,98090.0,6e-07]
[1733468277691,0.83724806,98091.0,98090.0,6e-07]
[1733468279004,1.37084806,98091.0,98090.0,6e-07]
[1733468279433,1.64571261,98091.0,98090.0,6e-07]
[1733468279649,1.37084806,98091.0,98090.0,6e-07]
[1733468280860,1.36988017,98091.0,98090.0,6e-07]
[1733468281528,1.47477509,98091.0,98090.0,6e-07]
[1733468284388,1.78768017,98091.0,98090.0,6e-07]
[1733468284596,2.13716844,98091.0,98090.0,6e-07]
[1733468285168,2.08716844,98091.0,98090.0,0.0754006]
[1733468285386,2.13716844,98091.0,98090.0,0.0754006]
[1733468287840,1.60356844,98091.0,98090.0,0.0754006]
[1733468288435,1.55356844,98091.0,98090.0,0.0754006]
[1733468288925,1.75106582,98091.0,98090.0,0.1246006]
[1733468289339,1.7516889,98091.0,98090.0,0.1246006]
[1733468294436,1.52263789,98091.0,98090.0,0.1246006]
[1733468295423,1.60171956,98091.0,98090.0,0.1246006]
[1733468296270,1.62384689,98091.0,98090.0,0.1246006]
[1733468297340,1.60171956,98091.0,98090.0,0.1246006]
[1733468298832,1.60193827,98091.0,98090.0,0.1246006]
[1733468299433,1.37283945,98091.0,98090.0,0.1246006]
[1733468301314,1.37283945,98091.0,98090.0,0.0754006]
[1733468301959,1.40439244,98091.0,98090.0,0.0754006]
[1733468302411,1.50928736,98091.0,98090.0,0.0754006]
[1733468303173,1.47773437,98091.0,98090.0,0.0754006]
[1733468303593,1.47770229,98091.0,98090.0,0.0754006]
[1733468303783,1.37280737,98091.0,98090.0,0.0754006]
[1733468304385,1.40436511,98091.0,98090.0,6e-07]
[1733468308098,1.40442573,98091.0,98090.0,6e-07]
[1733468310252,1.60442573,98091.0,98090.0,6e-07]
[1733468312021,2.13802573,98091.0,98090.0,6e-07]
[1733468312463,2.24292065,98091.0,98090.0,6e-07]
[1733468313075,2.13802573,98091.0,98090.0,6e-07]
[1733468318261,1.60442573,98091.0,98090.0,0.0765006]
[1733468320321,1.55442573,98091.0,98090.0,0.0765006]
[1733468320524,1.60442573,98091.0,98090.0,0.0765006]
[1733468324302,1.55442573,98091.0,98090.0,0.0765006]
[1733468324546,1.60442573,98091.0,98090.0,0.0765006]
[1733468325545,1.68083853,98091.0,98090.0,0.0765006]
[1733468327697,1.60442573,98091.0,98090.0,0.0765006]
[1733468330647,1.55442573,98091.0,98090.0,0.0765006]
[1733468334891,1.55442573,98091.0,98090.0,6e-07]
[1733468337231,1.55439878,98091.0,98090.0,6e-07]
[1733468341090,1.55456878,98091.0,98090.0,6e-07]
[1733468341310,1.7094637,98091.0,98090.0,6e-07]
[1733468341529,2.12162049,98091.0,98090.0,6e-07]
[1733468342166,2.65522049,98091.0,98090.0,6e-07]
[1733468342390,2.96468343,98091.0,98090.0,6e-07]
[1733468342820,0.70340527,98079.0,98078.0,0.08]
[1733468342956,1.98094993,98079.0,98078.0,0.08]
[1733468343368,2.02298613,98079.0,98078.0,0.08]
[1733468343887,1.98094993,98079.0,98078.0,0.08]
[1733468344557,1.94939219,98079.0,98078.0,0.08]
[1733468345158,1.98094608,98079.0,98078.0,0.08]
[1733468345362,1.94939219,98079.0,98078.0,0.08]
[1733468345594,1.98094166,98079.0,98078.0,0.08]
[1733468345805,1.94939219,98079.0,98078.0,0.08]
[1733468346228,1.98094244,98079.0,98078.0,0.08]
[1733468346363,1.94939219,98079.0,98078.0,0.08]
[1733468347198,2.05428711,98079.0,98078.0,0.08]
[1733468348921,2.08582823,98079.0,98078.0,0.08]
[1733468349348,2.05428711,98079.0,98078.0,0.08]
[1733468349580,2.08582558,98079.0,98078.0,0.08]
[1733468349772,2.10653646,98079.0,98078.0,0.08]
[1733468350456,2.07499799,98079.0,98078.0,0.08]
[1733468350842,2.00163972,98079.0,98078.0,0.08]
[1733468351252,1.67614769,98079.0,98078.0,0.08]
[1733468351457,1.9051791,98079.0,98078.0,0.08]
[1733468351981,1.85935897,98079.0,98078.0,0.08]
[1733468353266,1.67614769,98079.0,98078.0,0.08]
[1733468357760,1.67614769,98079.0,98078.0,0.1277]
[1733468357761,1.62665942,98079.0,98078.0,0.1277]
[1733468357964,1.60594854,98079.0,98078.0,0.1277]
[1733468358403,1.45594854,98079.0,98078.0,0.1277]
[1733468359877,1.60594854,98079.0,98078.0,0.1277]
[1733468366517,1.45594854,98079.0,98078.0,0.1277]
[1733468372692,1.15594854,98079.0,98078.0,0.1277]
[1733468375924,0.847,98079.0,98078.0,0.1277]
[1733468376065,0.379,98079.0,98078.0,0.1277]
[1733468387607,0.379,98079.0,98078.0,0.12821173]
[1733468387738,0.379,98079.0,98078.0,0.12881474]
[1733468390660,0.379,98079.0,98078.0,0.12821173]
[1733468393109,0.379,98079.0,98073.0,0.09125113]
[1733468393110,0.0008656,98090.0,98089.0,0.22965973]
[1733468407250,0.0008656,98090.0,98089.0,0.12771173]
[1733468407451,0.0008656,98090.0,98089.0,0.1272]
[1733468407648,0.0008656,98090.0,98089.0,0.12771173]
[1733468407856,0.0008656,98090.0,98089.0,0.12831436]
[1733468409700,0.0008656,98090.0,98089.0,0.12771173]
[1733468411400,0.0008656,98090.0,98089.0,0.1272]
[1733468412232,0.0008656,98090.0,98089.0,0.0817]
[1733468418206,0.0008656,98090.0,98083.0,0.0831]
[1733468418407,0.203896,98089.0,98083.0,0.0831]
[1733468419071,0.0008656,98090.0,98083.0,0.0831]
[1733468419368,0.0008656,98090.0,98084.0,0.00060278]
[1733468421967,0.203896,98089.0,98084.0,0.00060278]
[1733468422140,0.203896,98089.0,98083.0,0.0831]
[1733468422482,0.407793,98089.0,98083.0,0.0831]
[1733468422947,0.203896,98089.0,98083.0,0.0831]
[1733468424597,0.203906,98084.0,98083.0,0.0831]
[1733468424750,0.203896,98089.0,98083.0,0.0831]
[1733468426967,0.0008656,98090.0,98084.0,0.00060283]
[1733468427170,0.0008656,98090.0,98085.0,0.101952]
[1733468427373,0.0008656,98090.0,98086.0,0.08370272]
[1733468427835,0.0008656,98090.0,98089.0,0.00051173]
[1733468428059,0.0008656,98090.0,98089.0,0.13111425]
[1733468428500,0.0008656,98090.0,98089.0,0.46803075]
[1733468428710,0.0008656,98090.0,98089.0,0.46742823]
[1733468428927,0.0008656,98090.0,98089.0,0.13051173]
[1733468429149,0.0008656,98090.0,98089.0,0.31363704]
[1733468429365,0.0008656,98090.0,98089.0,0.64991783]
[1733468430740,0.0008656,98090.0,98089.0,0.57242643]
[1733468431815,0.0008658,98100.0,98099.0,0.23244873]
[1733468432031,0.0008658,98100.0,98099.0,0.81174392]
[1733468432248,0.0008658,98100.0,98099.0,0.67487092]
[1733468432681,0.0008658,98100.0,98099.0,0.85736825]
[1733468432928,0.0008658,98100.0,98099.0,0.72487092]
[1733468433332,0.0008658,98100.0,98099.0,0.95299258]
[1733468433536,0.0008658,98100.0,98099.0,0.72487092]
[1733468433955,0.00038112,98130.0,98119.0,0.228117]
[1733468436587,0.00038112,98130.0,98119.0,0.1262]
[1733468436756,0.00038112,98130.0,98119.0,0.12680169]
[1733468438433,0.00038112,98130.0,98119.0,0.12731342]
[1733468440263,0.203821,98126.0,98119.0,0.12731342]
[1733468440609,0.00038112,98130.0,98119.0,0.12671173]
[1733468440828,0.203817,98128.0,98119.0,0.00051173]
[1733468441031,0.203825,98124.0,98119.0,0.00051173]
[1733468442209,0.203817,98128.0,98110.0,0.00051173]
[1733468442404,0.203817,98128.0,98107.0,0.08181173]
[1733468442605,0.203836,98118.0,98100.0,0.0813]
[1733468442818,0.18096568,98120.0,98100.0,0.0813]
[1733468442819,0.48403154,98117.0,98100.0,0.0813]
[1733468443033,0.48403154,98117.0,98103.0,0.00051173]
[1733468443260,0.48403154,98117.0,98104.0,0.0006022]
[1733468443809,0.203856,98109.0,98103.0,0.00051173]
[1733468444013,0.203856,98109.0,98103.0,0.00111403]
[1733468444815,0.379,98117.0,98109.0,0.0813]
[1733468445041,0.379,98117.0,98113.0,0.00051173]
[1733468445409,0.20384,98116.0,98114.0,0.00060207]
[1733468445587,0.20384,98116.0,98113.0,0.00111382]
[1733468446453,0.20384,98116.0,98113.0,0.00051173]
[1733468446876,0.20384,98116.0,98109.0,0.08031802]
[1733468449904,0.407681,98116.0,98109.0,0.08031802]
[1733468450110,0.40658413,98116.0,98109.0,0.08031802]
[1733468450729,0.203852,98110.0,98109.0,0.08031802]
[1733468450919,0.203863,98105.0,98103.0,0.0771]
[1733468451937,0.203868,98103.0,98099.0,0.00057979]
[1733468452315,0.407737,98103.0,98099.0,0.00057979]
[1733468460315,0.203868,98103.0,98100.0,0.0771]
[1733468460531,0.203857,98108.0,98101.0,0.049]
[1733468461112,0.203846,98113.0,98102.0,0.0771]
[1733468462104,0.379,98117.0,98102.0,0.0771]
[1733468462325,0.379,98117.0,98104.0,0.0752]
[1733468462806,0.379,98117.0,98102.0,0.0752]
[1733468462807,0.582838,98117.0,98102.0,0.0752]
[1733468463031,0.582838,98117.0,98103.0,0.101933]
[1733468463238,0.582838,98117.0,98104.0,0.0752]
[1733468463449,0.379,98117.0,98105.0,0.101931]
[1733468463659,0.379,98117.0,98107.0,0.101929]
[1733468463868,0.379,98117.0,98108.0,0.0752]
[1733468465210,0.379,98117.0,98110.0,0.0752]
[1733468465536,0.379,98117.0,98111.0,0.101925]
[1733468465741,0.379,98117.0,98113.0,0.101923]
[1733468465982,0.379,98117.0,98112.0,0.0752]
[1733468469050,0.379,98117.0,98102.0,0.0752]
[1733468469274,0.203862,98106.0,98102.0,0.0752]
[1733468469879,0.203854,98110.0,98102.0,0.0752]
[1733468471129,0.20384,98116.0,98102.0,0.0752]
[1733468472645,0.20384,98116.0,98103.0,0.101933]
[1733468472848,0.20384,98116.0,98102.0,0.0752]
[1733468473450,0.407681,98116.0,98102.0,0.0752]
[1733468473881,0.379,98117.0,98102.0,0.0752]
[1733468474089,0.203873,98100.0,98099.0,0.00057979]
[1733468478165,0.75890454,98100.0,98099.0,0.00057979]
[1733468478931,0.78770075,98100.0,98099.0,0.00057979]
[1733468480308,0.83440075,98100.0,98099.0,0.00057979]
[1733468483989,0.85506043,98100.0,98099.0,0.00057979]
[1733468486127,0.90506043,98100.0,98099.0,0.00057979]
[1733468488143,0.05,98091.0,98080.0,0.0017312]
[1733468488330,1.35592354,98091.0,98090.0,0.00178909]
[1733468488670,1.39552354,98091.0,98090.0,0.00178909]
[1733468489293,1.81332354,98091.0,98090.0,9e-08]
[1733468489493,1.91821846,98091.0,98090.0,9e-08]
[1733468491053,1.81332354,98091.0,98090.0,9e-08]
[1733468492082,1.76332354,98091.0,98090.0,9e-08]
[1733468492345,2.02372354,98091.0,98090.0,9e-08]
[1733468492978,2.07372354,98091.0,98090.0,9e-08]
[1733468495871,2.11332354,98091.0,98090.0,9e-08]
[1733468496505,2.16247079,98091.0,98090.0,9e-08]
[1733468497317,2.16247079,98091.0,98090.0,0.00173089]
[1733468500178,2.16247079,98091.0,98090.0,8.9e-07]
[1733468501427,2.69607079,98091.0,98090.0,8.9e-07]
[1733468501637,2.64692354,98091.0,98090.0,8.9e-07]
[1733468503701,2.60732354,98091.0,98090.0,8.9e-07]
[1733468504144,2.55732354,98091.0,98090.0,8.9e-07]
[1733468504350,2.02372354,98091.0,98090.0,8.9e-07]
[1733468505210,2.07372354,98091.0,98090.0,8.9e-07]
[1733468505395,2.02372354,98091.0,98090.0,8.9e-07]
[1733468510428,2.17861846,98091.0,98090.0,8.9e-07]
[1733468513826,2.17861846,98091.0,98090.0,0.13190089]
[1733468513827,0.847,98091.0,98090.0,0.13190089]
[1733468514176,0.379,98091.0,98090.0,0.13190089]
[1733468514553,0.2509,98091.0,98090.0,0.13190089]
[1733468514765,0.1728,98091.0,98090.0,0.13190089]
[1733468515040,0.0008657,98100.0,98096.0,0.101939]
[1733468515258,0.0008657,98100.0,98097.0,0.0831]
[1733468515899,0.0008657,98100.0,98098.0,0.101938]
[1733468517164,0.0008657,98100.0,98097.0,0.0831]
[1733468517579,0.0008657,98100.0,98098.0,0.101938]
[1733468517979,0.0008657,98100.0,98097.0,0.0831]
[1733468518205,0.0008657,98100.0,98098.0,0.101938]
[1733468518467,0.0008657,98100.0,98097.0,0.0831]
[1733468519341,0.0008657,98100.0,98098.0,0.101938]
[1733468520538,0.0008657,98100.0,98099.0,0.1319]
[1733468529227,0.0008657,98100.0,98099.0,0.23693154]
[1733468529903,0.0008657,98100.0,98099.0,0.28693154]
[1733468533743,0.0008657,98100.0,98099.0,0.33693154]
[1733468534366,0.0008656,98120.0,98119.0,0.101917]
[1733468534518,0.0008656,98120.0,98119.0,0.179917]
[1733468535644,0.0008656,98120.0,98119.0,0.227917]
[1733468546674,0.0008656,98120.0,98119.0,0.101917]
[1733468548062,0.0008656,98120.0,98119.0,0.184117]
[1733468548874,0.0008656,98120.0,98119.0,0.279617]
[1733468552113,0.00059552,98120.0,98119.0,0.279617]
[1733468555986,0.00059552,98120.0,98119.0,0.26565804]
[1733468559616,0.00059552,98120.0,98119.0,0.40195913]
[1733468560366,0.00059552,98120.0,98119.0,0.60163391]
[1733468565504,0.00059552,98120.0,98119.0,0.7833687]
[1733468566450,0.00059552,98120.0,98119.0,0.60163391]
[1733468569684,0.00059552,98120.0,98119.0,0.7833687]
[1733468570306,0.00059552,98120.0,98119.0,0.60163391]
[1733468571307,0.00059552,98120.0,98119.0,0.7833687]
[1733468571442,0.00059552,98120.0,98119.0,0.60163391]
[1733468572281,0.00059552,98120.0,98119.0,0.60163391]
[1733468572825,0.00059552,98120.0,98119.0,0.26565804]
[1733468573159,0.00059552,98120.0,98119.0,0.60212155]
[1733468573365,0.00059552,98120.0,98119.0,0.78441712]
[1733468574188,0.00059552,98120.0,98119.0,0.75715309]
[1733468577486,0.00059552,98120.0,98119.0,0.75745133]
[1733468580384,0.00059552,98120.0,98119.0,1.03113707]
[1733468580971,0.00059552,98120.0,98119.0,0.75745133]
[1733468581168,0.00059552,98120.0,98119.0,0.75781508]
[1733468582662,0.00059552,98120.0,98119.0,1.03181314]
[1733468582867,0.00059552,98120.0,98119.0,1.03181786]
[1733468583109,0.00059552,98120.0,98119.0,0.75781508]
[1733468584407,0.00059552,98120.0,98119.0,0.90781508]
[1733468584847,0.00038112,98130.0,98129.0,0.101906]
[1733468585044,0.00038112,98130.0,98129.0,0.62656304]
[1733468585295,0.00038112,98130.0,98129.0,0.28943754]
[1733468585530,0.00038112,98130.0,98129.0,0.62646248]
[1733468586073,0.00096091,98130.0,98129.0,0.62646248]
[1733468587141,0.00096091,98130.0,98129.0,0.33702494]
[1733468587466,0.00096091,98130.0,98128.0,0.101906]
[1733468587681,0.00096091,98130.0,98129.0,0.51958712]
[1733468588361,0.00096091,98130.0,98129.0,0.33702494]
[1733468588561,0.00096091,98130.0,98129.0,0.51958712]
[1733468588982,0.00096091,98130.0,98128.0,0.13694184]
[1733468589188,0.00096091,98130.0,98128.0,0.18256218]
[1733468589393,0.00096091,98130.0,98128.0,0.51954316]
[1733468589606,0.00096091,98130.0,98129.0,0.33698098]
[1733468590034,0.00096091,98130.0,98128.0,0.18256218]
[1733468591161,0.00096091,98130.0,98128.0,0.51954316]
[1733468591383,0.00096091,98130.0,98129.0,0.33698098]
[1733468591588,0.20477191,98130.0,98128.0,0.51954316]
[1733468591815,0.00096091,98130.0,98129.0,0.33698098]
[1733468592221,0.00096091,98130.0,98127.0,0.18256218]
[1733468592547,0.00096091,98130.0,98128.0,0.51954316]
[1733468592756,0.00096091,98130.0,98129.0,0.33698098]
[1733468592974,0.27987191,98130.0,98128.0,0.09130514]
[1733468593186,0.27987191,98130.0,98123.0,0.09130514]
[1733468593187,0.0751,98127.0,98123.0,0.09130514]
[1733468593392,0.18013154,98127.0,98121.0,0.09130514]
[1733468593540,0.203829,98121.0,98117.0,0.09130514]
[1733468593739,0.203829,98121.0,98110.0,0.27992337]
[1733468593740,0.203829,98121.0,98119.0,0.13694641]
[1733468594002,0.203829,98121.0,98118.0,0.3370418]
[1733468594003,0.203829,98121.0,98120.0,0.09130561]
[1733468594338,0.482759,98121.0,98120.0,0.09130561]
[1733468594531,0.203832,98120.0,98116.0,0.0913179]
[1733468594736,0.407664,98120.0,98116.0,0.0913179]
[1733468595218,0.0751,98121.0,98116.0,0.0913179]
[1733468595421,0.203834,98119.0,98117.0,0.0913179]
[1733468595701,0.203834,98119.0,98117.0,0.13697686]
[1733468595819,0.203836,98118.0,98117.0,0.13697686]
[1733468596986,0.203832,98120.0,98114.0,0.09128005]
[1733468596987,0.40768,98116.0,98114.0,0.09128005]
[1733468597243,0.0751,98114.0,98112.0,0.09128005]
[1733468597389,0.278944,98114.0,98113.0,0.13697686]
[1733468597590,0.203846,98113.0,98110.0,0.0517308]
[1733468597991,0.407692,98113.0,98110.0,0.0517308]
[1733468603442,0.32995,98111.0,98110.0,8e-07]
[1733468603646,0.43498154,98111.0,98110.0,8e-07]
[1733468604211,0.52649147,98111.0,98110.0,8e-07]
[1733468604528,0.43498154,98111.0,98110.0,8e-07]
[1733468605265,0.43798154,98111.0,98110.0,8e-07]
[1733468605473,0.43498154,98111.0,98110.0,8e-07]
[1733468605916,0.43798154,98111.0,98110.0,8e-07]
[1733468606128,0.43898154,98111.0,98110.0,8e-07]
[1733468606747,0.45816958,98111.0,98110.0,8e-07]
[1733468606923,0.45916958,98111.0,98110.0,8e-07]
[1733468607282,0.45916958,98111.0,98100.0,1e-06]
[1733468607283,0.582671,98101.0,98100.0,1e-06]
[1733468607479,0.83320254,98101.0,98100.0,1e-06]
[1733468617923,0.88320254,98101.0,98100.0,1e-06]
[1733468618158,1.35080254,98101.0,98100.0,1e-06]
[1733468620148,1.25100254,98101.0,98100.0,1e-06]
[1733468620554,0.349371,98101.0,98100.0,1e-06]
[1733468636910,0.1455,98101.0,98100.0,1e-06]
[1733468637294,0.349371,98101.0,98100.0,1e-06]
[1733468637705,0.31336386,98110.0,98100.0,1e-06]
[1733468637706,0.0017312,98110.0,98100.0,1e-06]
[1733468637903,0.0017312,98110.0,98101.0,0.0796]
[1733468638450,0.203854,98109.0,98101.0,0.0796]
[1733468638573,0.203864,98105.0,98101.0,0.0796]
[1733468639407,0.407728,98105.0,98101.0,0.0796]
[1733468639607,0.407728,98105.0,98100.0,1e-06]
[1733468641334,0.407734,98103.0,98100.0,1e-06]
[1733468641570,0.281571,98101.0,98100.0,1e-06]
[1733468641766,0.38660254,98101.0,98100.0,1e-06]
[1733468644384,0.43460254,98101.0,98100.0,1e-06]
[1733468645759,0.58460254,98101.0,98100.0,1e-06]
[1733468645963,1.29978708,98101.0,98100.0,1e-06]
[1733468646204,1.404682,98101.0,98100.0,1e-06]
[1733468646618,1.63308712,98101.0,98100.0,1e-06]
[1733468646822,1.63308712,98101.0,98080.0,0.0017312]
[1733468646823,0.284192,98091.0,98080.0,0.0017312]
[1733468647021,0.60822354,98091.0,98080.0,0.0017312]
[1733468647222,0.95338133,98091.0,98080.0,0.0017312]
[1733468647430,1.13634493,98091.0,98080.0,0.0017312]
[1733468647661,1.18208583,98091.0,98080.0,0.0017312]
[1733468648067,0.95338133,98091.0,98080.0,0.0017312]
[1733468648676,1.18208583,98091.0,98080.0,0.0017312]
[1733468648876,0.95338133,98091.0,98080.0,0.0017312]
[1733468649502,0.9537675,98091.0,98080.0,0.0017312]
[1733468650082,1.24158724,98091.0,98080.0,0.0017312]
[1733468650401,1.33241504,98091.0,98080.0,0.0017312]
[1733468650602,1.1037675,98091.0,98080.0,0.0017312]
[1733468651213,0.8195755,98091.0,98080.0,9e-08]
[1733468651366,0.48067437,98081.0,98080.0,5.919e-05]
[1733468651726,1.51197437,98081.0,98080.0,5.919e-05]
[1733468652238,1.42054454,98081.0,98080.0,5.919e-05]
[1733468652570,1.42254454,98081.0,98080.0,5.919e-05]
[1733468652774,1.42054454,98081.0,98080.0,5.919e-05]
[1733468653253,1.42454454,98081.0,98080.0,5.919e-05]
[1733468653674,1.42654454,98081.0,98080.0,5.919e-05]
[1733468657678,1.34624454,98081.0,98080.0,5.919e-05]
[1733468659701,0.92844454,98081.0,98080.0,5.919e-05]
[1733468660624,0.92644454,98081.0,98080.0,5.919e-05]
[1733468661485,0.92244454,98081.0,98080.0,5.919e-05]
[1733468667859,1.07244454,98081.0,98080.0,5.919e-05]
[1733468670397,1.12917947,98081.0,98080.0,5.919e-05]
[1733468670960,1.07244454,98081.0,98080.0,5.919e-05]
[1733468681986,0.86853154,98081.0,98080.0,5.919e-05]
[1733468682189,1.07244454,98081.0,98080.0,5.919e-05]
[1733468685456,1.16372772,98081.0,98080.0,5.919e-05]
[1733468685657,1.07244454,98081.0,98080.0,5.919e-05]
[1733468687478,0.92244454,98081.0,98080.0,5.919e-05]
[1733468688510,1.22066837,98081.0,98080.0,5.919e-05]
[1733468688971,0.92244454,98081.0,98080.0,5.919e-05]
[1733468689132,1.22071749,98081.0,98080.0,5.919e-05]
[1733468689713,1.22071749,98081.0,98080.0,1.9e-07]
[1733468689714,1.37071749,98081.0,98080.0,1.9e-07]
[1733468689918,1.45141749,98081.0,98080.0,1.9e-07]
[1733468690115,1.45673102,98081.0,98080.0,1.9e-07]
[1733468690336,1.68493899,98081.0,98080.0,1.9e-07]
[1733468691330,1.68561662,98081.0,98080.0,1.9e-07]
[1733468691567,1.45673102,98081.0,98080.0,1.9e-07]
[1733468691798,1.79051587,98081.0,98080.0,1.9e-07]
[1733468691988,1.45673102,98081.0,98080.0,1.9e-07]
[1733468692198,1.48825171,98081.0,98080.0,1.9e-07]
[1733468693340,1.76287187,98081.0,98080.0,1.9e-07]
[1733468693547,1.76287388,98081.0,98080.0,1.9e-07]
[1733468693752,2.29647388,98081.0,98080.0,1.9e-07]
[1733468694184,2.29647388,98081.0,98050.0,0.0808]
[1733468694185,0.353933,98071.0,98070.0,3.9e-07]
[1733468694336,0.79017361,98071.0,98070.0,3.9e-07]
[1733468694664,1.08844656,98071.0,98070.0,3.9e-07]
[1733468695826,1.09044656,98071.0,98070.0,3.9e-07]
[1733468696769,0.79217361,98071.0,98070.0,3.9e-07]
[1733468697001,0.79017361,98071.0,98070.0,3.9e-07]
[1733468697367,0.89806853,98071.0,98070.0,3.9e-07]